[Event "*** Titled Tuesday Blitz"]
[Site "Chess.com"]
[Date "2019.04.02"]
[Round "3"]
[White "Kimster98"]
[Black "TheBigBoss04"]
[Result "0-1"]
[WhiteElo "2603"]
[BlackElo "2557"]
[TimeControl "180+2"]
[EndTime "14:40:06 PDT"]
[Termination "TheBigBoss04 won by resignation"]

1. Nf3 {[%clk 0:03:01.9]} 1... d5 {[%clk 0:03:00.6]} 2. d4 {[%clk 0:03:02.6]}
2... Nf6 {[%clk 0:03:01]} 3. c4 {[%clk 0:03:04]} 3... e6 {[%clk 0:03:02.3]} 4.
Nc3 {[%clk 0:03:03.7]} 4... Bb4 {[%clk 0:03:01.2]} 5. Bg5 {[%clk 0:02:59.7]}
5... h6 {[%clk 0:03:01.4]} 6. Bxf6 {[%clk 0:03:00.1]} 6... Qxf6 {[%clk
0:03:03.3]} 7. e3 {[%clk 0:03:01.7]} 7... O-O {[%clk 0:03:02.9]} 8. Rc1 {[%clk
0:03:01]} 8... dxc4 {[%clk 0:03:03.2]} 9. Bxc4 {[%clk 0:03:01.6]} 9... c5 {[%clk
0:03:01.9]} 10. O-O {[%clk 0:03:02.7]} 10... cxd4 {[%clk 0:03:03]} 11. Nxd4
{[%clk 0:03:04.1]} 11... Bd7 {[%clk 0:03:01.4]} 12. Qb3 {[%clk 0:03:05.3]} 12...
Nc6 {[%clk 0:03:02.6]} 13. Nxc6 {[%clk 0:03:04.7]} 13... Bxc3 {[%clk 0:03:03.2]}
14. Qxc3 {[%clk 0:03:02.8]} 14... Bxc6 {[%clk 0:02:58.5]} 15. Qxf6 {[%clk
0:03:03.8]} 15... gxf6 {[%clk 0:02:59.9]} 16. Rfd1 {[%clk 0:03:05.3]} 16... Rfd8
{[%clk 0:03:00.4]} 17. Be2 {[%clk 0:03:03.3]} 17... Kf8 {[%clk 0:02:54.8]} 18.
f4 {[%clk 0:03:02.8]} 18... Bd5 {[%clk 0:02:53]} 19. b3 {[%clk 0:03:01.6]} 19...
Ke7 {[%clk 0:02:53.5]} 20. Kf2 {[%clk 0:03:02.9]} 20... Rac8 {[%clk 0:02:53.3]}
21. g3 {[%clk 0:03:03.7]} 21... a5 {[%clk 0:02:46.8]} 22. Bb5 {[%clk 0:03:01.1]}
22... h5 {[%clk 0:02:31.7]} 23. Ke2 {[%clk 0:02:52.3]} 23... h4 {[%clk
0:02:29.4]} 24. Rxc8 {[%clk 0:02:52.6]} 24... Rxc8 {[%clk 0:02:28.2]} 25. Kd2
{[%clk 0:02:53.7]} 25... hxg3 {[%clk 0:02:28]} 26. hxg3 {[%clk 0:02:54.3]} 26...
Rh8 {[%clk 0:02:21.4]} 27. Kc3 {[%clk 0:02:52.8]} 27... Rh2 {[%clk 0:02:18.2]}
28. a4 {[%clk 0:02:51.8]} 28... Rg2 {[%clk 0:02:18.6]} 29. Bc4 {[%clk
0:02:40.3]} 29... Bf3 {[%clk 0:02:07]} 30. Rh1 {[%clk 0:02:14.1]} 30... Rxg3
{[%clk 0:02:04.8]} 31. Rh8 {[%clk 0:02:15.5]} 31... Bc6 {[%clk 0:01:59]} 32. Kd4
{[%clk 0:02:13.4]} 32... e5+ {[%clk 0:01:44.5]} 33. fxe5 {[%clk 0:02:15.3]}
33... fxe5+ {[%clk 0:01:45.9]} 34. Kxe5 {[%clk 0:02:16.7]} 34... Rxe3+ {[%clk
0:01:45.7]} 35. Kd4 {[%clk 0:02:18.6]} 35... Re4+ {[%clk 0:01:45.2]} 36. Kc5
{[%clk 0:02:19.7]} 36... Re5+ {[%clk 0:01:35.8]} 37. Kb6 {[%clk 0:02:19.9]}
37... f5 {[%clk 0:01:34.5]} 38. Rh7+ {[%clk 0:02:07.1]} 38... Kf6 {[%clk
0:01:35.1]} 39. Bb5 {[%clk 0:02:08.4]} 39... f4 {[%clk 0:01:26.4]} 40. Bxc6
{[%clk 0:01:58.7]} 40... bxc6 {[%clk 0:01:25.1]} 41. Kxc6 {[%clk 0:02:00]} 41...
f3 {[%clk 0:01:16.8]} 42. Rh1 {[%clk 0:01:52.7]} 42... Re3 {[%clk 0:01:15.6]}
43. Kb5 {[%clk 0:01:51.4]} 43... Re5+ {[%clk 0:01:03.7]} 44. Kc4 {[%clk
0:01:51.7]} 44... Kf5 {[%clk 0:01:00.8]} 45. b4 {[%clk 0:01:45.3]} 45... Re4+
{[%clk 0:01:00.3]} 46. Kb5 {[%clk 0:01:46.7]} 46... axb4 {[%clk 0:00:59.7]} 47.
a5 {[%clk 0:01:48.1]} 47... b3 {[%clk 0:00:58.4]} 48. a6 {[%clk 0:01:49.2]}
48... b2 {[%clk 0:00:58.2]} 49. a7 {[%clk 0:01:46.1]} 49... Re8 {[%clk
0:00:57.4]} 50. Rb1 {[%clk 0:01:31.6]} 50... f2 {[%clk 0:00:57]} 51. Kc6 {[%clk
0:01:32.4]} 51... Kg4 {[%clk 0:00:51.3]} 52. Kb7 {[%clk 0:01:32.7]} 52... Kg3
{[%clk 0:00:49.7]} 53. a8=Q {[%clk 0:01:32.2]} 53... Rxa8 {[%clk 0:00:32.1]} 54.
Kxa8 {[%clk 0:01:34.1]} 54... Kf3 {[%clk 0:00:31.7]} 55. Kb7 {[%clk 0:01:05.1]}
55... Ke3 {[%clk 0:00:31.8]} 56. Kc6 {[%clk 0:01:05.6]} 56... Kd3 {[%clk
0:00:30.1]} 57. Kd5 {[%clk 0:01:05.6]} 57... Kc2 {[%clk 0:00:27.6]} 58. Rf1
{[%clk 0:01:06.8]} 58... b1=Q {[%clk 0:00:26.7]} 59. Rxf2+ {[%clk 0:01:08.2]}
59... Kc3 {[%clk 0:00:26.7]} 60. Rf3+ {[%clk 0:01:09.3]} 60... Kd2 {[%clk
0:00:26.4]} 61. Ke5 {[%clk 0:01:04.3]} 61... Ke2 {[%clk 0:00:24.6]} 62. Rf6
{[%clk 0:00:54.1]} 62... Ke3 {[%clk 0:00:24]} 63. Rd6 {[%clk 0:00:50.2]} 63...
Qb5+ {[%clk 0:00:21.9]} 64. Rd5 {[%clk 0:00:50.4]} 64... Qb2+ {[%clk 0:00:21.6]}
65. Kf5 {[%clk 0:00:48.8]} 65... Qf2+ {[%clk 0:00:21.4]} 66. Ke6 {[%clk
0:00:47.4]} 66... Qa2 {[%clk 0:00:18.6]} 67. Ke5 {[%clk 0:00:46.9]} 67... Qa6
{[%clk 0:00:18]} 68. Rc5 {[%clk 0:00:25.3]} 68... Qa3 {[%clk 0:00:12.5]} 69. Rc6
{[%clk 0:00:21.6]} 69... Qa5+ {[%clk 0:00:08.3]} 70. Ke6 {[%clk 0:00:19.8]}
70... Kd4 {[%clk 0:00:09.3]} 71. Rd6+ {[%clk 0:00:21]} 71... Ke4 {[%clk
0:00:10.8]} 72. Kd7 {[%clk 0:00:20.7]} 72... Qa7+ {[%clk 0:00:09.7]} 73. Ke6
{[%clk 0:00:21.1]} 73... Qc7 {[%clk 0:00:11.2]} 74. Rd7 {[%clk 0:00:20.3]} 74...
Qc6+ {[%clk 0:00:10.9]} 75. Ke7 {[%clk 0:00:21.8]} 75... Ke5 {[%clk 0:00:11.6]}
76. Kd8 {[%clk 0:00:22.9]} 76... Qa8+ {[%clk 0:00:06.9]} 77. Kc7 {[%clk
0:00:23.3]} 77... Qa7+ {[%clk 0:00:07.2]} 78. Kd8 {[%clk 0:00:20.3]} 78... Qb6+
{[%clk 0:00:08.3]} 79. Ke7 {[%clk 0:00:20.8]} 79... Qc6 {[%clk 0:00:07.7]} 80.
Kd8 {[%clk 0:00:19.7]} 80... Kf6 {[%clk 0:00:08.5]} 81. Rf7+ {[%clk 0:00:19]}
81... Kg6 {[%clk 0:00:09.3]} 82. Rc7 {[%clk 0:00:17.2]} 82... Qd6+ {[%clk
0:00:08.5]} 83. Kc8 {[%clk 0:00:18]} 83... Kf6 {[%clk 0:00:07.2]} 84. Kb7 {[%clk
0:00:15.4]} 84... Qb4+ {[%clk 0:00:08.3]} 85. Kc8 {[%clk 0:00:15.2]} 85... Ke6
{[%clk 0:00:09.1]} 86. Rc6+ {[%clk 0:00:16.6]} 86... Ke7 {[%clk 0:00:10]} 87.
Kc7 {[%clk 0:00:14.7]} 87... Qa5+ {[%clk 0:00:08.4]} 88. Kc8 {[%clk 0:00:12.5]}
88... Qa8+ {[%clk 0:00:08.5]} 89. Kc7 {[%clk 0:00:12.4]} 89... Qa7+ {[%clk
0:00:09.9]} 90. Kc8 {[%clk 0:00:14]} 90... Qd7+ {[%clk 0:00:11.4]} 91. Kb8
{[%clk 0:00:15.9]} 91... Qxc6 {[%clk 0:00:12.9]} 92. Ka7 {[%clk 0:00:17.7]}
92... Qb5 {[%clk 0:00:14.2]} 93. Ka8 {[%clk 0:00:15.5]} 93... Kd7 {[%clk
0:00:15.3]} 0-1

[Event "*** Titled Tuesday Blitz"]
[Site "Chess.com"]
[Date "2019.04.02"]
[Round "3"]
[White "fu24"]
[Black "Artooooo"]
[Result "0-1"]
[WhiteElo "2515"]
[BlackElo "2728"]
[TimeControl "180+2"]
[EndTime "14:40:20 PDT"]
[Termination "Artooooo won by resignation"]

1. d4 {[%clk 0:03:01.9]} 1... Nf6 {[%clk 0:03:00]} 2. Bg5 {[%clk 0:02:58.1]}
2... Ne4 {[%clk 0:02:58.3]} 3. h4 {[%clk 0:02:58.3]} 3... Nxg5 {[%clk
0:02:58.1]} 4. hxg5 {[%clk 0:02:59]} 4... g6 {[%clk 0:02:57.5]} 5. f4 {[%clk
0:02:59.1]} 5... Bg7 {[%clk 0:02:56.4]} 6. Nf3 {[%clk 0:02:59.9]} 6... d6 {[%clk
0:02:54.2]} 7. e3 {[%clk 0:02:58.6]} 7... c5 {[%clk 0:02:49.9]} 8. c3 {[%clk
0:02:59.8]} 8... Qb6 {[%clk 0:02:50.7]} 9. Qb3 {[%clk 0:02:39.6]} 9... h6 {[%clk
0:02:46.5]} 10. Nbd2 {[%clk 0:02:25.1]} 10... hxg5 {[%clk 0:02:33.7]} 11. Rxh8+
{[%clk 0:02:27]} 11... Bxh8 {[%clk 0:02:35.6]} 12. Nxg5 {[%clk 0:02:27.2]} 12...
Qxb3 {[%clk 0:02:34.3]} 13. Nxb3 {[%clk 0:02:22.4]} 13... b6 {[%clk 0:02:31.3]}
14. Bc4 {[%clk 0:01:51.2]} 14... e6 {[%clk 0:02:29.5]} 15. Bb5+ {[%clk
0:01:51.3]} 15... Ke7 {[%clk 0:02:25.2]} 16. Be2 {[%clk 0:01:48.9]} 16... a6
{[%clk 0:02:22.7]} 17. Bf3 {[%clk 0:01:49.3]} 17... Ra7 {[%clk 0:02:23.8]} 18.
Kf2 {[%clk 0:01:49.1]} 18... Nd7 {[%clk 0:02:21.9]} 19. Rh1 {[%clk 0:01:48.4]}
19... Bg7 {[%clk 0:02:23.3]} 20. Rh7 {[%clk 0:01:47.7]} 20... Kf8 {[%clk
0:02:24.5]} 21. Ne4 {[%clk 0:01:27.4]} 21... Nf6 {[%clk 0:02:13.2]} 22. Nxf6
{[%clk 0:01:21.7]} 22... Bxf6 {[%clk 0:02:15.1]} 23. Nd2 {[%clk 0:01:23.3]}
23... Kg8 {[%clk 0:02:10.3]} 24. Rh1 {[%clk 0:01:24.8]} 24... d5 {[%clk
0:01:46.1]} 25. g4 {[%clk 0:01:24.4]} 25... Rc7 {[%clk 0:01:41.9]} 26. g5 {[%clk
0:01:23.7]} 26... Be7 {[%clk 0:01:37.5]} 27. Be2 {[%clk 0:01:24.8]} 27... Bd7
{[%clk 0:01:30.3]} 28. Nf3 {[%clk 0:01:24.4]} 28... Be8 {[%clk 0:01:17.8]} 29.
Ne5 {[%clk 0:01:22.7]} 29... Kg7 {[%clk 0:01:08.5]} 30. a3 {[%clk 0:01:23.3]}
30... a5 {[%clk 0:01:03.8]} 31. Bd3 {[%clk 0:01:15.9]} 31... b5 {[%clk
0:01:03.4]} 32. Ke2 {[%clk 0:01:17.1]} 32... b4 {[%clk 0:01:02.2]} 33. axb4
{[%clk 0:01:15.8]} 33... cxb4 {[%clk 0:00:51.1]} 34. cxb4 {[%clk 0:01:15.4]}
34... Bxb4 {[%clk 0:00:53]} 35. Ra1 {[%clk 0:01:00.6]} 35... Kf8 {[%clk
0:00:49.2]} 36. Rh1 {[%clk 0:00:56]} 36... Kg7 {[%clk 0:00:46.1]} 37. Ra1 {[%clk
0:00:56.5]} 37... Rb7 {[%clk 0:00:43.9]} 38. Ra2 {[%clk 0:00:41.2]} 38... Kf8
{[%clk 0:00:42.1]} 39. Ba6 {[%clk 0:00:38.4]} 39... Rc7 {[%clk 0:00:31.6]} 40.
Bd3 {[%clk 0:00:37.8]} 40... Rc1 {[%clk 0:00:31.2]} 41. b3 {[%clk 0:00:36.9]}
41... Rc3 {[%clk 0:00:23]} 42. Rb2 {[%clk 0:00:36.3]} 42... Ke7 {[%clk 0:00:22]}
43. Nf3 {[%clk 0:00:34.5]} 43... Kd6 {[%clk 0:00:17.4]} 44. Nd2 {[%clk
0:00:35.7]} 44... Rc1 {[%clk 0:00:16.9]} 45. Rc2 {[%clk 0:00:35.4]} 45... Rh1
{[%clk 0:00:17.3]} 46. Nf3 {[%clk 0:00:36.1]} 46... Rb1 {[%clk 0:00:17.2]} 47.
Rc6+ {[%clk 0:00:35.9]} 47... Kxc6 {[%clk 0:00:09]} 48. Bxb1 {[%clk 0:00:37.8]}
48... Bd6 {[%clk 0:00:08.1]} 49. Bd3 {[%clk 0:00:38.7]} 49... Kb6 {[%clk
0:00:09.3]} 50. Kd2 {[%clk 0:00:38.6]} 50... Bb4+ {[%clk 0:00:10.4]} 51. Kc2
{[%clk 0:00:39.7]} 51... Bd6 {[%clk 0:00:11.7]} 52. Ne5 {[%clk 0:00:40.9]} 52...
Kc7 {[%clk 0:00:12.9]} 53. Kc3 {[%clk 0:00:40.8]} 53... Kb6 {[%clk 0:00:14.4]}
54. Be2 {[%clk 0:00:41.6]} 54... Ba3 {[%clk 0:00:15.4]} 55. Bd3 {[%clk
0:00:41.7]} 55... Bc1 {[%clk 0:00:16.6]} 56. Ng4 {[%clk 0:00:41.7]} 56... Ba3
{[%clk 0:00:17.8]} 57. Kc2 {[%clk 0:00:43]} 57... Bb4 {[%clk 0:00:19.2]} 58. Ne5
{[%clk 0:00:44.1]} 58... Be1 {[%clk 0:00:20.2]} 59. Kd1 {[%clk 0:00:43.5]} 59...
Bc3 {[%clk 0:00:20.8]} 60. Kc2 {[%clk 0:00:44.5]} 60... Be1 {[%clk 0:00:21.5]}
61. Kd1 {[%clk 0:00:45.5]} 61... Bb4 {[%clk 0:00:23.2]} 62. Kc2 {[%clk
0:00:46.2]} 62... Bf8 {[%clk 0:00:24.8]} 63. Be2 {[%clk 0:00:39.7]} 63... Bd6
{[%clk 0:00:23.9]} 64. Bd3 {[%clk 0:00:40.9]} 64... a4 {[%clk 0:00:23.7]} 65.
bxa4 {[%clk 0:00:41.5]} 65... Bxa4+ {[%clk 0:00:25.6]} 66. Kd2 {[%clk
0:00:43.2]} 66... Be8 {[%clk 0:00:27.3]} 67. Kc3 {[%clk 0:00:43.6]} 67... Ka5
{[%clk 0:00:28.9]} 68. Kb3 {[%clk 0:00:43.4]} 68... Bb4 {[%clk 0:00:29.3]} 69.
Be2 {[%clk 0:00:39.5]} 69... Bd2 {[%clk 0:00:28.5]} 70. Ng4 {[%clk 0:00:39.9]}
70... Ba4+ {[%clk 0:00:29.1]} 71. Kb2 {[%clk 0:00:40.8]} 71... Kb4 {[%clk
0:00:30.8]} 72. Bd3 {[%clk 0:00:41.4]} 72... Bc3+ {[%clk 0:00:28.9]} 73. Kb1
{[%clk 0:00:42.1]} 73... Bd2 {[%clk 0:00:26.9]} 74. Kb2 {[%clk 0:00:39.6]} 74...
Bd1 {[%clk 0:00:17.5]} 75. Ne5 {[%clk 0:00:36.1]} 75... Bxe3 {[%clk 0:00:17.9]}
76. Nxf7 {[%clk 0:00:37.5]} 76... Bh5 {[%clk 0:00:09.7]} 77. Kc2 {[%clk
0:00:33.2]} 77... Bxf4 {[%clk 0:00:08.7]} 78. Ba6 {[%clk 0:00:32]} 78... Bg4
{[%clk 0:00:07.5]} 79. Nh6 {[%clk 0:00:26.8]} 79... Bh5 {[%clk 0:00:06.9]} 80.
Nf7 {[%clk 0:00:27.7]} 80... Ka5 {[%clk 0:00:04.5]} 81. Bd3 {[%clk 0:00:28]}
81... Kb6 {[%clk 0:00:05.5]} 82. Nh8 {[%clk 0:00:27.2]} 82... Bxg5 {[%clk
0:00:06.1]} 83. Bxg6 {[%clk 0:00:28.1]} 83... Bg4 {[%clk 0:00:05.8]} 84. Nf7
{[%clk 0:00:28.7]} 84... Bf6 {[%clk 0:00:05.8]} 85. Kd3 {[%clk 0:00:29.5]} 85...
Kc7 {[%clk 0:00:06.1]} 86. Nh6 {[%clk 0:00:30.2]} 86... Bd1 {[%clk 0:00:06.7]}
87. Kd2 {[%clk 0:00:30.6]} 87... Ba4 {[%clk 0:00:07.4]} 88. Ng4 {[%clk
0:00:30.7]} 88... Bxd4 {[%clk 0:00:08.5]} 89. Kd3 {[%clk 0:00:31.2]} 89... Bg7
{[%clk 0:00:08.9]} 90. Bf7 {[%clk 0:00:32.3]} 90... Kd6 {[%clk 0:00:09.7]} 91.
Ne3 {[%clk 0:00:33.7]} 91... Bb5+ {[%clk 0:00:10.8]} 92. Kd2 {[%clk 0:00:35]}
92... Bh6 {[%clk 0:00:12.3]} 93. Bg6 {[%clk 0:00:34.1]} 93... d4 {[%clk
0:00:13.6]} 94. Bd3 {[%clk 0:00:35.6]} 94... Bxe3+ {[%clk 0:00:14]} 95. Ke2
{[%clk 0:00:37.5]} 95... Bxd3+ {[%clk 0:00:15.9]} 0-1

[Event "*** Titled Tuesday Blitz"]
[Site "Chess.com"]
[Date "2019.04.02"]
[Round "3"]
[White "GataKamsky1974"]
[Black "mikhaillushenkov"]
[Result "1/2-1/2"]
[WhiteElo "2754"]
[BlackElo "2658"]
[TimeControl "180+2"]
[EndTime "14:40:58 PDT"]
[Termination "Game drawn by 50-move rule"]

1. d4 {[%clk 0:03:01.9]} 1... Nf6 {[%clk 0:03:00.9]} 2. Nf3 {[%clk 0:02:58.6]}
2... d5 {[%clk 0:03:01.6]} 3. Bf4 {[%clk 0:02:59.3]} 3... c5 {[%clk 0:03:02.7]}
4. e3 {[%clk 0:03:00.7]} 4... Nc6 {[%clk 0:03:03.6]} 5. Nbd2 {[%clk 0:03:02]}
5... e6 {[%clk 0:03:04.1]} 6. c3 {[%clk 0:03:02.6]} 6... Bd6 {[%clk 0:03:04.8]}
7. Bg3 {[%clk 0:03:02.9]} 7... Qe7 {[%clk 0:03:05.9]} 8. Ne5 {[%clk 0:03:03]}
8... Nd7 {[%clk 0:03:06.9]} 9. f4 {[%clk 0:03:01.5]} 9... O-O {[%clk 0:03:06.7]}
10. Bd3 {[%clk 0:03:01.6]} 10... f6 {[%clk 0:03:08.1]} 11. Nxd7 {[%clk
0:02:37.9]} 11... Bxd7 {[%clk 0:03:07.7]} 12. O-O {[%clk 0:02:38.8]} 12... f5
{[%clk 0:02:47.9]} 13. Nf3 {[%clk 0:02:38.3]} 13... Be8 {[%clk 0:02:45.4]} 14.
Bh4 {[%clk 0:02:38.6]} 14... Qf7 {[%clk 0:02:40.7]} 15. Ne5 {[%clk 0:02:38.7]}
15... Qc7 {[%clk 0:02:31.5]} 16. h3 {[%clk 0:02:35.9]} 16... Nxe5 {[%clk
0:02:23.8]} 17. fxe5 {[%clk 0:02:36.2]} 17... Be7 {[%clk 0:02:25]} 18. Bxe7
{[%clk 0:02:35.3]} 18... Qxe7 {[%clk 0:02:26.9]} 19. Kh2 {[%clk 0:02:27.1]}
19... cxd4 {[%clk 0:02:19]} 20. cxd4 {[%clk 0:02:23.4]} 20... Qg5 {[%clk
0:02:16.5]} 21. Qd2 {[%clk 0:02:23.3]} 21... Rc8 {[%clk 0:02:14.9]} 22. Rac1
{[%clk 0:02:22.4]} 22... Bh5 {[%clk 0:02:15.3]} 23. b4 {[%clk 0:02:10.1]} 23...
h6 {[%clk 0:02:10.9]} 24. a4 {[%clk 0:02:09.7]} 24... Qe7 {[%clk 0:01:42.9]} 25.
a5 {[%clk 0:02:08.7]} 25... g5 {[%clk 0:01:35.3]} 26. Rc5 {[%clk 0:01:43.4]}
26... b6 {[%clk 0:01:31.6]} 27. Rxc8 {[%clk 0:01:43.7]} 27... Rxc8 {[%clk
0:01:32.3]} 28. Ba6 {[%clk 0:01:24.1]} 28... Rf8 {[%clk 0:01:20.5]} 29. Qc3
{[%clk 0:01:17.8]} 29... bxa5 {[%clk 0:01:11.6]} 30. bxa5 {[%clk 0:01:18]} 30...
f4 {[%clk 0:01:10.9]} 31. exf4 {[%clk 0:01:17.4]} 31... gxf4 {[%clk 0:01:12.8]}
32. g3 {[%clk 0:00:43.4]} 32... fxg3+ {[%clk 0:00:41.1]} 33. Qxg3+ {[%clk
0:00:43.7]} 33... Qg5 {[%clk 0:00:41.2]} 34. h4 {[%clk 0:00:32.3]} 34... Qxg3+
{[%clk 0:00:39.4]} 35. Kxg3 {[%clk 0:00:33.5]} 35... Rxf1 {[%clk 0:00:39.8]} 36.
Bxf1 {[%clk 0:00:33.1]} 36... Kf7 {[%clk 0:00:40.4]} 37. Kf4 {[%clk 0:00:31]}
37... Bd1 {[%clk 0:00:39.6]} 38. Bd3 {[%clk 0:00:31]} 38... Ke7 {[%clk
0:00:38.6]} 39. Ke3 {[%clk 0:00:30.3]} 39... Kd7 {[%clk 0:00:38]} 40. Bb5+
{[%clk 0:00:31.1]} 40... Kc7 {[%clk 0:00:37.6]} 41. Kd2 {[%clk 0:00:32.2]} 41...
Bg4 {[%clk 0:00:35.9]} 42. Kc3 {[%clk 0:00:33.2]} 42... Bf5 {[%clk 0:00:36.9]}
43. Kb4 {[%clk 0:00:34]} 43... Bg4 {[%clk 0:00:37.7]} 44. Kc5 {[%clk 0:00:35.1]}
44... Bf5 {[%clk 0:00:38.9]} 45. Be2 {[%clk 0:00:35.5]} 45... Bh3 {[%clk
0:00:39.4]} 46. Kb5 {[%clk 0:00:35.2]} 46... Kb7 {[%clk 0:00:39.6]} 47. Bd3
{[%clk 0:00:36]} 47... Bg4 {[%clk 0:00:40.1]} 48. Bg6 {[%clk 0:00:35.3]} 48...
Be2+ {[%clk 0:00:39.4]} 49. Kb4 {[%clk 0:00:34.9]} 49... Kc7 {[%clk 0:00:39.9]}
50. Bf7 {[%clk 0:00:33.6]} 50... Bg4 {[%clk 0:00:41]} 51. Kb5 {[%clk 0:00:34.7]}
51... Kb7 {[%clk 0:00:42.2]} 52. Be8 {[%clk 0:00:34.8]} 52... Bf5 {[%clk
0:00:41]} 53. Bc6+ {[%clk 0:00:33.4]} 53... Kc7 {[%clk 0:00:42.4]} 54. Kc5
{[%clk 0:00:34.7]} 54... Bg4 {[%clk 0:00:43.3]} 55. Bb5 {[%clk 0:00:32.5]} 55...
Bh3 {[%clk 0:00:43.2]} 56. Bd3 {[%clk 0:00:32.7]} 56... Bg4 {[%clk 0:00:44]} 57.
Kb4 {[%clk 0:00:31]} 57... Bh3 {[%clk 0:00:44.3]} 58. Kb5 {[%clk 0:00:31.9]}
58... Kb7 {[%clk 0:00:44.6]} 59. Kb4 {[%clk 0:00:32.1]} 59... Kc7 {[%clk
0:00:45.7]} 60. Kc3 {[%clk 0:00:33.6]} 60... Kd7 {[%clk 0:00:43.5]} 61. Kd2
{[%clk 0:00:34.5]} 61... Ke7 {[%clk 0:00:44.1]} 62. Ke3 {[%clk 0:00:35.6]} 62...
Bg4 {[%clk 0:00:43.3]} 63. Bc2 {[%clk 0:00:34.7]} 63... Bh5 {[%clk 0:00:41.5]}
64. Bd3 {[%clk 0:00:26.6]} 64... Bd1 {[%clk 0:00:42]} 65. Kf4 {[%clk 0:00:26.9]}
65... Kf7 {[%clk 0:00:41.6]} 66. Bf1 {[%clk 0:00:24.6]} 66... Bh5 {[%clk
0:00:41]} 67. Bh3 {[%clk 0:00:25.1]} 67... Bd1 {[%clk 0:00:42]} 68. Ke3 {[%clk
0:00:26]} 68... Ke7 {[%clk 0:00:29.4]} 69. Kd2 {[%clk 0:00:26.7]} 69... Bh5
{[%clk 0:00:30.4]} 70. Kc3 {[%clk 0:00:27.6]} 70... Bf7 {[%clk 0:00:32]} 71. Kb4
{[%clk 0:00:27.4]} 71... Kd7 {[%clk 0:00:33.4]} 72. Bg4 {[%clk 0:00:27.2]} 72...
Kc6 {[%clk 0:00:32.2]} 73. Ka4 {[%clk 0:00:20.4]} 73... Bg8 {[%clk 0:00:30.9]}
74. Bh5 {[%clk 0:00:21]} 74... Bh7 {[%clk 0:00:31.7]} 75. Bg4 {[%clk 0:00:20.8]}
75... Bg8 {[%clk 0:00:30.4]} 76. Kb4 {[%clk 0:00:21.4]} 76... Bf7 {[%clk
0:00:31.2]} 77. Bh3 {[%clk 0:00:21.1]} 77... Bg8 {[%clk 0:00:32]} 78. Bf1 {[%clk
0:00:19.3]} 78... Bf7 {[%clk 0:00:31.8]} 79. Bb5+ {[%clk 0:00:19.3]} 79... Kc7
{[%clk 0:00:33.3]} 80. Bd3 {[%clk 0:00:18.5]} 80... Bh5 {[%clk 0:00:32.6]} 81.
Kb5 {[%clk 0:00:19]} 81... Kb7 {[%clk 0:00:33.4]} 82. Bf1 {[%clk 0:00:18.5]}
82... Bg4 {[%clk 0:00:31.8]} 83. Kc5 {[%clk 0:00:17.3]} 83... Kc7 {[%clk
0:00:33]} 84. Bd3 {[%clk 0:00:13.8]} 84... Bh3 {[%clk 0:00:33.3]} 85. Kb4 {[%clk
0:00:14]} 85... Kc6 {[%clk 0:00:32.7]} 86. Kc3 {[%clk 0:00:13.8]} 86... Kd7
{[%clk 0:00:33.2]} 87. Kd2 {[%clk 0:00:14.6]} 87... Bg4 {[%clk 0:00:34.1]} 88.
Ke3 {[%clk 0:00:15.4]} 88... Bd1 {[%clk 0:00:35.3]} 89. Kf4 {[%clk 0:00:16.3]}
89... Ke7 {[%clk 0:00:36.4]} 90. Bf1 {[%clk 0:00:17]} 90... Bh5 {[%clk
0:00:34.3]} 91. Bh3 {[%clk 0:00:17.7]} 91... Bd1 {[%clk 0:00:35.2]} 92. Ke3
{[%clk 0:00:18.4]} 92... Kd7 {[%clk 0:00:34.2]} 93. Kd2 {[%clk 0:00:19.1]} 93...
Bh5 {[%clk 0:00:35.5]} 94. Kc3 {[%clk 0:00:19.7]} 94... Bf7 {[%clk 0:00:36.9]}
95. Kb4 {[%clk 0:00:20.3]} 95... Kc6 {[%clk 0:00:38.5]} 96. Bg4 {[%clk
0:00:21.5]} 96... Bg8 {[%clk 0:00:38]} 97. Bh5 {[%clk 0:00:22.5]} 97... Bh7
{[%clk 0:00:36.8]} 98. Be8+ {[%clk 0:00:22.2]} 98... Kc7 {[%clk 0:00:37.2]} 99.
Kc5 {[%clk 0:00:21.9]} 99... Bf5 {[%clk 0:00:37]} 100. Bf7 {[%clk 0:00:21.9]}
100... Bg4 {[%clk 0:00:36.3]} 101. Bg6 {[%clk 0:00:22.9]} 101... Bh3 {[%clk
0:00:35.8]} 102. Bd3 {[%clk 0:00:22.6]} 102... Bg4 {[%clk 0:00:34.9]} 103. Bf1
{[%clk 0:00:23.2]} 103... Bf5 {[%clk 0:00:34.9]} 104. Be2 {[%clk 0:00:24.3]}
104... Bh3 {[%clk 0:00:35.9]} 105. Kb5 {[%clk 0:00:21.3]} 105... Kb7 {[%clk
0:00:36.6]} 106. Bd3 {[%clk 0:00:22]} 106... Bg4 {[%clk 0:00:35.3]} 107. Kb4
{[%clk 0:00:22]} 107... Kc6 {[%clk 0:00:35.9]} 108. Kc3 {[%clk 0:00:22.6]}
1/2-1/2